fUSD/lending_fUSD_20250414
["ID","MTS","AMOUNT","RATE_DAILY","PERIOD"]
[357973476,1744635040680,-500.0,0.00019178,2]
[357973477,1744635040689,-500.0,0.00019178,2]
[357973478,1744635040699,-500.0,0.00019178,2]
[357973479,1744635040708,-500.0,0.00019178,2]
[357973480,1744635040717,-564.11142073,0.00019178,2]
[357973481,1744635040727,-500.0,0.00019178,2]
[357973482,1744635040736,-500.0,0.00019178,2]
[357973483,1744635040746,-607.62089549,0.00019178,2]
[357973484,1744635040755,-500.0,0.00019178,2]
[357973485,1744635040764,-500.0,0.00019178,2]
[357973486,1744635040774,-500.0,0.00019178,2]
[357973487,1744635040784,-500.0,0.00019178,2]
[357973488,1744635040793,-500.0,0.00019178,2]
[357973489,1744635040802,-500.0,0.00019178,2]
[357973490,1744635040812,-523.30088731,0.00019178,2]
[357973491,1744635040821,-500.0,0.00019178,2]
[357973492,1744635040831,-500.0,0.00019178,2]
[357973493,1744635040841,-500.0,0.00019178,2]
[357973494,1744635040851,-500.0,0.00019178,2]
[357973495,1744635040861,-500.0,0.00019178,2]
[357973496,1744635040870,-500.0,0.00019178,2]
[357973497,1744635040880,-500.0,0.00019178,2]
[357973498,1744635040889,-500.0,0.00019178,2]
[357973499,1744635040899,-500.0,0.00019178,2]
[357973500,1744635040908,-500.0,0.00019178,2]
[357973501,1744635040917,-500.0,0.00019178,2]
[357973502,1744635040927,-500.0,0.00019178,2]
[357973503,1744635040936,-200.0,0.00019178,2]
[357973504,1744635040945,-500.0,0.00019178,2]
[357973505,1744635040955,-500.0,0.00019178,2]
[357973506,1744635040965,-500.0,0.00019178,2]
[357973507,1744635040974,-500.0,0.00019178,2]
[357973508,1744635040984,-500.0,0.00019178,2]
[357973509,1744635040993,-500.0,0.00019178,2]
[357973510,1744635041004,-500.0,0.00019178,2]
[357973511,1744635041013,-500.0,0.00019178,2]
[357973512,1744635041023,-789.71,0.00019178,2]
[357973513,1744635041037,-500.0,0.00019178,2]
[357973514,1744635041046,-500.0,0.00019178,2]
[357973515,1744635041056,-500.0,0.00019178,2]
[357973516,1744635041066,-500.0,0.00019178,2]
[357973517,1744635041077,-500.0,0.00019178,2]
[357973518,1744635041087,-26875.3,0.00019178,2]
[357973519,1744635041096,-500.0,0.00019178,2]
[357973520,1744635041106,-500.0,0.00019178,2]
[357973521,1744635041116,-524.14,0.00019178,2]
[357973522,1744635041126,-500.0,0.00019178,2]
[357973523,1744635041135,-541.45,0.00019178,2]
[357973524,1744635041144,-398.44948144,0.00019178,2]
[357973525,1744635041154,-553.52918989,0.00019178,2]
[357973526,1744635041163,-500.0,0.00019178,2]
[357973527,1744635041172,-640.82,0.00019178,2]
[357973528,1744635041182,-500.0,0.00019178,2]
[357973529,1744635041192,-500.0,0.00019178,2]
[357973530,1744635041201,-1314.98,0.00019178,2]
[357973531,1744635041210,-500.0,0.00019178,2]
[357973532,1744635041220,-500.0,0.00019178,2]
[357973533,1744635041229,-500.0,0.00019178,2]
[357973534,1744635041239,-500.0,0.00019178,2]
[357973535,1744635041249,-500.0,0.00019178,2]
[357973536,1744635041259,-500.0,0.00019178,2]
[357973537,1744635041268,-500.0,0.00019178,2]
[357973538,1744635041278,-500.0,0.00019178,2]
[357973539,1744635041287,-500.0,0.00019178,2]
[357973540,1744635041297,-500.0,0.00019178,2]
[357973541,1744635041307,-500.0,0.00019178,2]
[357973542,1744635041317,-627.07,0.00019178,2]
[357973543,1744635041326,-3570.67,0.00019178,2]
[357973544,1744635041336,-500.0,0.00019178,2]
[357973545,1744635041346,-500.0,0.00019178,2]
[357973546,1744635041355,-500.0,0.00019178,2]
[357973547,1744635041365,-500.0,0.00019178,2]
[357973548,1744635041375,-500.0,0.00019178,2]
[357973549,1744635041384,-500.0,0.00019178,2]
[357973550,1744635041394,-500.0,0.00019178,2]
[357973551,1744635041403,-619.36,0.00019178,2]
[357973552,1744635041413,-500.0,0.00019178,2]
[357973553,1744635041423,-500.0,0.00019178,2]
[357973554,1744635041432,-500.0,0.00019178,2]
[357973555,1744635041442,-500.0,0.00019178,2]
[357973556,1744635041452,-538.7290083,0.00019178,2]
[357973557,1744635041462,-500.0,0.00019178,2]
[357973558,1744635041471,-500.0,0.00019178,2]
[357973559,1744635041481,-500.0,0.00019178,2]
[357973560,1744635041491,-500.0,0.00019178,2]
[357973561,1744635041501,-500.0,0.00019178,2]
[357973562,1744635041511,-500.0,0.00019178,2]
[357973563,1744635041521,-500.0,0.00019178,2]
[357973564,1744635041531,-500.0,0.00019178,2]
[357973565,1744635041541,-500.0,0.00019178,2]
[357973566,1744635041550,-500.0,0.00019178,2]
[357973567,1744635041560,-500.0,0.00019178,2]
[357973568,1744635041570,-512.86312731,0.00019178,2]
[357973569,1744635041579,-500.0,0.00019178,2]
[357973570,1744635041589,-500.0,0.00019178,2]
[357973571,1744635041599,-985.53,0.00019178,2]
[357973572,1744635041608,-500.0,0.00019178,2]
[357973573,1744635041618,-500.0,0.00019178,2]
[357973574,1744635041627,-500.0,0.00019178,2]
[357973575,1744635041638,-150.0,0.00019178,2]
[357973576,1744635041647,-500.0,0.00019178,2]
[357973577,1744635041657,-500.0,0.00019178,2]
[357973578,1744635041667,-500.0,0.00019178,2]
[357973579,1744635041677,-500.0,0.00019178,2]
[357973580,1744635041686,-172.93193658,0.00019178,2]
[357973581,1744635041696,-500.0,0.00019178,2]
[357973582,1744635041707,-500.0,0.00019178,2]
[357973583,1744635041718,-500.0,0.00019178,2]
[357973584,1744635041727,-500.0,0.00019178,2]
[357973585,1744635041737,-500.0,0.00019178,2]
[357973586,1744635041748,-500.0,0.00019178,2]
[357973587,1744635041758,-500.0,0.00019178,2]
[357973588,1744635041768,-500.0,0.00019178,2]
[357973589,1744635041778,-504.23171124,0.00019178,2]
[357973590,1744635041787,-500.0,0.00019178,2]
[357973591,1744635041797,-500.0,0.00019178,2]
[357973592,1744635041807,-500.0,0.00019178,2]
[357973593,1744635041816,-500.0,0.00019178,2]
[357973594,1744635041826,-2000.0,0.00019178,2]
[357973595,1744635041835,-500.0,0.00019178,2]
[357973596,1744635041845,-500.0,0.00019178,2]
[357973597,1744635041856,-603.03690998,0.00019178,2]
[357973598,1744635041866,-500.0,0.00019178,2]
[357973599,1744635041876,-621.45,0.00019178,2]
[357973600,1744635041887,-500.0,0.00019178,2]
[357973601,1744635041897,-500.0,0.00019178,2]
[357973602,1744635041907,-504.1633221,0.00019178,2]
[357973603,1744635041916,-500.0,0.00019178,2]
[357973604,1744635041925,-500.0,0.00019178,2]
[357973605,1744635041935,-500.0,0.00019178,2]
[357973606,1744635041945,-500.0,0.00019178,2]
[357973607,1744635041955,-507.15322763,0.00019178,2]
[357973608,1744635041966,-500.0,0.00019178,2]
[357973609,1744635041975,-500.0,0.00019178,2]
[357973610,1744635041984,-500.0,0.00019178,2]
[357973611,1744635041994,-500.0,0.00019178,2]
[357973612,1744635042003,-500.0,0.00019178,2]
[357973613,1744635042013,-500.0,0.00019178,2]
[357973614,1744635042022,-500.0,0.00019178,2]
[357973615,1744635042036,-1310.22,0.00019178,2]
[357973616,1744635042045,-500.0,0.00019178,2]
[357973617,1744635042055,-500.0,0.00019178,2]
[357973618,1744635042065,-500.0,0.00019178,2]
[357973619,1744635042077,-500.0,0.00019178,2]
[357973620,1744635042087,-500.0,0.00019178,2]
[357973621,1744635042096,-271.04821779,0.00019178,2]
[357973622,1744635042106,-584.464357,0.00019178,2]
[357973623,1744635042115,-500.0,0.00019178,2]
[357973624,1744635042124,-500.0,0.00019178,2]
[357973625,1744635042134,-500.0,0.00019178,2]
[357973626,1744635042144,-500.0,0.00019178,2]
[357973627,1744635042153,-525.19032362,0.00019178,2]
[357973628,1744635042162,-500.0,0.00019178,2]
[357973629,1744635042172,-313.03835211,0.00019178,2]
[357973630,1744635042183,-500.0,0.00019178,2]
[357973631,1744635042194,-500.0,0.00019178,2]
[357973632,1744635042204,-500.0,0.00019178,2]
[357973633,1744635042216,-574.83773874,0.00019178,2]
[357973634,1744635042225,-500.0,0.00019178,2]
[357973635,1744635042235,-500.0,0.00019178,2]
[357973636,1744635042244,-500.0,0.00019178,2]
[357973637,1744635042253,-500.0,0.00019178,2]
[357973638,1744635042263,-588.21515634,0.00019178,2]
[357973639,1744635042274,-1352.64,0.00019178,2]
[357973640,1744635042283,-500.0,0.00019178,2]
[357973641,1744635042292,-515.61811463,0.00019178,2]
[357973642,1744635042303,-500.0,0.00019178,2]
[357973643,1744635042312,-369.32654153,0.00019178,2]
[357973644,1744635042321,-500.0,0.00019178,2]
[357973645,1744635042331,-182.57510806,0.00019178,2]
[357973646,1744635042340,-500.0,0.00019178,2]
[357973647,1744635042350,-500.0,0.00019178,2]
[357973648,1744635042360,-500.0,0.00019178,2]
[357973649,1744635042370,-500.0,0.00019178,2]
[357973650,1744635042380,-514.98488608,0.00019178,2]
[357973651,1744635042389,-500.0,0.00019178,2]
[357973652,1744635042399,-619.27083389,0.00019178,2]
[357973653,1744635042409,-500.0,0.00019178,2]
[357973654,1744635042419,-500.0,0.00019178,2]
[357973655,1744635042429,-500.0,0.00019178,2]
[357973656,1744635042438,-500.0,0.00019178,2]
[357973657,1744635042448,-519.26,0.00019178,2]
[357973658,1744635042457,-500.0,0.00019178,2]
[357973659,1744635042467,-500.0,0.00019178,2]
[357973660,1744635042476,-507.01884421,0.00019178,2]
[357973661,1744635042486,-500.0,0.00019178,2]
[357973662,1744635042495,-500.0,0.00019178,2]
[357973663,1744635042505,-500.3464815,0.00019178,2]
[357973664,1744635042515,-546.70121778,0.00019178,2]
[357973665,1744635042524,-500.0,0.00019178,2]
[357973666,1744635042534,-500.0,0.00019178,2]
[357973667,1744635042544,-151.0,0.00019178,2]
[357973668,1744635042555,-626.89706412,0.00019178,2]
[357973669,1744635042564,-500.0,0.00019178,2]
[357973670,1744635042575,-500.0,0.00019178,2]
[357973671,1744635042587,-500.0,0.00019178,2]
[357973672,1744635042597,-500.0,0.00019178,2]
[357973673,1744635042609,-502.52705317,0.00019178,2]
[357973674,1744635042621,-500.0,0.00019178,2]
[357973675,1744635042633,-535.19663594,0.00019178,2]
[357973676,1744635042643,-503.83442561,0.00019178,2]
[357973677,1744635042653,-500.0,0.00019178,2]
[357973678,1744635042663,-500.0,0.00019178,2]
[357973679,1744635042672,-500.0,0.00019178,2]
[357973680,1744635042682,-490.08,0.00019202,2]
[357973681,1744635042691,-160.09104658,0.00019261,2]
[357973682,1744635042701,-160.09104658,0.00019352,2]
[357973683,1744635042711,-246.23,0.00019362,2]
[357973684,1744635042720,-307.65,0.000194,2]
[357973686,1744635042729,-160.09104658,0.00019443,2]
[357973687,1744635042739,-1030.51172233,0.00019452,2]
[357973688,1744635042748,-500.0,0.00019452,2]
[357973689,1744635042759,-500.0,0.00019452,2]
[357973690,1744635042768,-500.0,0.00019452,2]
[357973691,1744635042778,-500.0,0.00019452,2]
[357973692,1744635042787,-500.0,0.00019452,2]
[357973693,1744635042797,-448.3,0.00019452,2]
[357973694,1744635042806,-206.31,0.00019452,2]
[357973695,1744635042816,-500.0,0.00019452,2]
[357973696,1744635042825,-162.56,0.00019452,2]
[357973697,1744635042835,-500.0,0.00019452,2]
[357973698,1744635042845,-500.0,0.00019452,2]
[357973699,1744635042855,-500.0,0.00019452,2]
[357973700,1744635042864,-500.0,0.00019452,2]
[357973701,1744635042874,-500.0,0.00019452,2]
[357973702,1744635042883,-500.0,0.00019452,2]
[357973703,1744635042893,-500.0,0.00019452,2]
[357973704,1744635042903,-608.95956989,0.00019452,2]
[357973705,1744635042912,-500.0,0.00019452,2]
[357973706,1744635042922,-746.07,0.00019452,2]
[357973708,1744635042931,-500.0,0.00019452,2]
[357973709,1744635042941,-809.0,0.00019452,2]
[357973712,1744635042951,-500.0,0.00019452,2]
[357973714,1744635042961,-500.0,0.00019452,2]
[357973716,1744635042970,-500.0,0.00019452,2]
[357973718,1744635042980,-500.0,0.00019452,2]
[357973719,1744635042990,-500.0,0.00019452,2]
[357973720,1744635042999,-500.0,0.00019452,2]
[357973721,1744635043009,-500.0,0.00019452,2]
[357973722,1744635043018,-450.43,0.00019452,2]
[357973723,1744635043029,-551.73,0.00019452,2]
[357973724,1744635043040,-500.0,0.00019452,2]
[357973725,1744635043049,-500.0,0.00019452,2]
[357973726,1744635043058,-366.14247718,0.00019452,2]
[357973728,1744635043068,-500.0,0.00019452,2]
[357973730,1744635043081,-500.0,0.00019452,2]
[357973732,1744635043091,-500.0,0.00019452,2]
[357973733,1744635043100,-500.0,0.00019452,2]
[357973734,1744635043111,-500.0,0.00019452,2]
[357973735,1744635043120,-500.0,0.00019452,2]
[357973736,1744635043130,-500.0,0.00019452,2]
[357973737,1744635043139,-157.64231433,0.00019452,2]
[357973738,1744635043149,-500.0,0.00019452,2]
[357973739,1744635043159,-500.0,0.00019452,2]
[357973740,1744635043169,-500.0,0.00019452,2]
[357973741,1744635043179,-500.0,0.00019452,2]
[357973742,1744635043189,-789.71,0.00019452,2]
[357973743,1744635043205,-349.65,0.00019452,2]
[357973744,1744635043215,-500.0,0.00019452,2]
[357973745,1744635043224,-500.0,0.00019452,2]
[357973746,1744635043234,-500.0,0.00019452,2]
[357973747,1744635043243,-26850.42993523,0.00019452,2]
[357973748,1744635043266,-24.87006477,0.00019452,2]
[357973749,1744635043276,-226.97,0.00019452,2]
[357973750,1744635043286,-500.0,0.00019452,2]
[357973751,1744635043295,-248.01431448,0.00019452,2]
[357973752,1744635043305,-640.82,0.00019452,2]
[357973753,1744635043314,-500.0,0.00019452,2]
[357973754,1744635043323,-500.0,0.00019452,2]
[357973755,1744635043333,-1314.98,0.00019452,2]
[357973756,1744635043342,-325.11774081,0.00019452,2]
[357973757,1744635043352,-500.0,0.00019452,2]
[357973758,1744635043362,-409.58650914,0.00019452,2]
[357973759,1744635043371,-500.0,0.00019452,2]
[357973760,1744635043380,-500.0,0.00019452,2]
[357973761,1744635043390,-500.0,0.00019452,2]
[357973762,1744635043400,-203.08,0.00019452,2]
[357973763,1744635043409,-500.0,0.00019452,2]
[357973764,1744635043419,-3570.67,0.00019452,2]
[357973765,1744635043429,-500.0,0.00019452,2]
[357973766,1744635043439,-622.38005136,0.00019452,2]
[357973767,1744635043448,-500.0,0.00019452,2]
[357973768,1744635043459,-500.0,0.00019452,2]
[357973769,1744635043468,-424.45,0.00019452,2]
[357973770,1744635043478,-500.0,0.00019452,2]
[357973771,1744635043487,-200.48967401,0.00019452,2]
[357973773,1744635043640,-500.0,0.00019452,2]
[357973774,1744635043650,-227.19,0.00019452,2]
[357973775,1744635043661,-500.0,0.00019452,2]
[357973776,1744635043670,-500.0,0.00019452,2]
[357973777,1744635043679,-985.53,0.00019452,2]
[357973778,1744635043689,-500.0,0.00019452,2]
[357973779,1744635043699,-500.0,0.00019452,2]
[357973780,1744635043709,-500.0,0.00019452,2]
[357973781,1744635043719,-500.0,0.00019452,2]
[357973782,1744635043728,-347.45,0.00019452,2]
[357973783,1744635043738,-500.0,0.00019452,2]
[357973784,1744635043747,-621.45,0.00019452,2]
[357973785,1744635043757,-500.0,0.00019452,2]
[357973786,1744635043767,-500.0,0.00019452,2]
[357973787,1744635043776,-1310.22,0.00019452,2]
[357973788,1744635043787,-500.0,0.00019452,2]
[357973789,1744635043797,-500.0,0.00019452,2]
[357973790,1744635043807,-187.47,0.00019452,2]
[357973791,1744635043816,-500.0,0.00019452,2]
[357973792,1744635043825,-500.0,0.00019452,2]
[357973793,1744635043835,-448.27,0.00019452,2]
[357973794,1744635043844,-1352.64,0.00019452,2]
[357973795,1744635043853,-500.0,0.00019452,2]
[357973796,1744635043863,-519.26,0.00019452,2]
[357973797,1744635043872,-500.0,0.00019452,2]
[357973798,1744635043882,-500.0,0.00019452,2]
[357973799,1744635043891,-500.0,0.00019452,2]
[357973800,1744635043901,-160.09104658,0.00019535,2]
[357973801,1744635043910,-160.09104658,0.00019626,2]
[357973802,1744635043919,-1148.7752,0.00019626,2]
[357973803,1744635043928,-767.64237677,0.00019684,2]
[357973804,1744635043937,-767.64237677,0.00019697,2]
[357973805,1744635043947,-159.43841875,0.00019699,2]
[357973806,1744635043957,-170.42519665,0.00019699,2]
[357973807,1744635043966,-1000.0,0.000197,2]
[357973808,1744635043976,-848.16001264,0.000197,2]
[357973809,1744635043985,-767.64237677,0.00019705,2]
[357973810,1744635043995,-767.64237677,0.00019713,2]
[357973811,1744635044005,-160.09104658,0.00019717,2]
[357973812,1744635044015,-500.0,0.00019725,2]
[357973813,1744635044024,-500.0,0.00019725,2]
[357973814,1744635044039,-500.0,0.00019726,2]
[357973815,1744635044048,-500.0,0.00019726,2]
[357973816,1744635044057,-500.0,0.00019726,2]
[357973817,1744635044067,-500.0,0.00019726,2]
[357973818,1744635044078,-500.0,0.00019726,2]
[357973819,1744635044087,-500.0,0.00019726,2]
[357973820,1744635044097,-500.0,0.00019726,2]
[357973821,1744635044109,-746.07,0.00019726,2]
[357973822,1744635044119,-809.0,0.00019726,2]
[357973823,1744635044128,-442.16,0.00019726,2]
[357973824,1744635044138,-500.0,0.00019726,2]
[357973825,1744635044147,-500.0,0.00019726,2]
[357973826,1744635044157,-462.1057391,0.00019726,2]
[357973827,1744635044166,-262.58,0.00019726,2]
[357973828,1744635044179,-380.93825309,0.00019726,2]
[357973829,1744635044190,-500.0,0.00019726,2]
[357973830,1744635044199,-500.0,0.00019726,2]
[357973831,1744635044209,-500.0,0.00019726,2]
[357973832,1744635044218,-500.0,0.00019726,2]
[357973833,1744635044228,-500.0,0.00019726,2]
[357973834,1744635044237,-500.0,0.00019726,2]
[357973835,1744635044247,-500.0,0.00019726,2]
[357973836,1744635044257,-312.51950477,0.00019726,2]
[357973837,1744635044266,-789.71,0.00019726,2]
[357973838,1744635044275,-500.0,0.00019726,2]
[357973839,1744635044285,-500.0,0.00019726,2]
[357973840,1744635044294,-500.0,0.00019726,2]
[357973841,1744635044303,-493.92402176,0.00019726,2]
[357973842,1744635044396,-1000.0,0.00019178,2]
[357973843,1744635044406,-500.0,0.00019178,2]
[357973844,1744635044415,-26381.37597824,0.00019726,2]
[357973845,1744635044425,-500.0,0.00019726,2]
[357973846,1744635044435,-640.82,0.00019726,2]
[357973847,1744635044444,-1314.98,0.00019726,2]
[357973848,1744635044454,-408.28655351,0.00019726,2]
[357973849,1744635044463,-3570.67,0.00019726,2]
[357973850,1744635044474,-500.0,0.00019726,2]
[357973851,1744635044484,-500.0,0.00019726,2]
[357973852,1744635044494,-985.53,0.00019726,2]
[357973853,1744635044504,-500.0,0.00019726,2]
[357973854,1744635044514,-500.0,0.00019726,2]
[357973855,1744635044524,-500.0,0.00019726,2]
[357973856,1744635044533,-501.38732778,0.00019726,2]
[357973857,1744635044543,-500.0,0.00019726,2]
[357973858,1744635044553,-621.45,0.00019726,2]
[357973859,1744635044562,-500.0,0.00019726,2]
[357973860,1744635044571,-500.0,0.00019726,2]
[357973861,1744635044581,-1310.22,0.00019726,2]
[357973862,1744635044591,-500.0,0.00019726,2]
[357973863,1744635044601,-500.0,0.00019726,2]
[357973864,1744635044611,-500.0,0.00019726,2]
[357973865,1744635044621,-500.0,0.00019726,2]
[357973866,1744635044631,-1352.64,0.00019726,2]
[357973867,1744635044640,-500.0,0.00019726,2]
[357973868,1744635044650,-500.0,0.00019726,2]
[357973869,1744635044659,-519.26,0.00019726,2]
[357973870,1744635044669,-500.0,0.00019726,2]
[357973871,1744635044678,-150.0,0.00019727,2]
[357973872,1744635044688,-767.64237677,0.00019728,2]
[357973873,1744635044698,-150.0,0.00019736,2]
[357973874,1744635044709,-150.0,0.00019738,2]
[357973875,1744635044718,-150.0,0.00019744,2]
[357973876,1744635044728,-150.0,0.00019746,2]
[357973877,1744635044738,-150.0,0.00019749,2]
[357973878,1744635044747,-150.0,0.0001975,2]
[357973879,1744635044757,-150.0,0.0001975,2]
[357973880,1744635044766,-151.26076523,0.00019752,2]
[357973881,1744635044775,-767.64237678,0.00019753,2]
[357973882,1744635044785,-150.0,0.00019754,2]
[357973883,1744635044794,-767.64237678,0.00019761,2]
[357973884,1744635044803,-767.64237678,0.00019764,2]
[357973885,1744635044813,-150.0,0.00019773,2]
[357973886,1744635044822,-150.0,0.00019774,2]
[357973887,1744635044831,-150.0,0.00019776,2]
[357973888,1744635044840,-150.0,0.00019777,2]
[357973889,1744635044849,-150.0,0.00019778,2]
[357973890,1744635044859,-150.0,0.0001978,2]
[357973891,1744635044868,-767.64237677,0.00019786,2]
[357973892,1744635044877,-150.0,0.00019788,2]
[357973893,1744635044886,-150.0,0.00019792,2]
[357973894,1744635044896,-150.0,0.00019792,2]
[357973895,1744635044905,-150.0,0.00019793,2]
[357973896,1744635044915,-150.0,0.00019797,2]
[357973897,1744635044924,-1293.053506,0.00019799,2]
[357973898,1744635044934,-150.0,0.000198,2]
[357973899,1744635044943,-1000.0,0.000198,2]
[357973900,1744635044952,-150.0,0.00019804,2]
[357973901,1744635044962,-1044.67592953,0.00019804,2]
[357973902,1744635044971,-160.09104658,0.00019809,2]
[357973903,1744635044981,-175.91132507,0.0001981,2]
[357973904,1744635044990,-150.0,0.00019812,2]
[357973905,1744635045001,-150.0,0.00019813,2]
[357973906,1744635045011,-150.0,0.00019825,2]
[357973907,1744635045020,-259.22715001,0.00019827,2]
[357973908,1744635045034,-150.0,0.00019836,2]
[357973909,1744635045044,-150.0,0.00019837,2]
[357973910,1744635045053,-150.0,0.00019839,2]
[357973911,1744635045063,-150.0,0.0001984,2]
[357973912,1744635045073,-150.0,0.0001984,2]
[357973913,1744635045082,-150.0,0.00019845,2]
[357973914,1744635045093,-150.0,0.00019846,2]
[357973915,1744635045102,-150.0,0.00019848,2]
[357973916,1744635045114,-500.0,0.00019863,2]
[357973917,1744635045123,-450.0,0.00019863,2]
[357973918,1744635045134,-500.0,0.00019863,2]
[357973919,1744635045143,-500.0,0.00019863,2]
[357973920,1744635045153,-150.0,0.00019869,2]
[357973921,1744635045163,-150.0,0.0001987,2]
[357973922,1744635045174,-150.0,0.00019872,2]
[357973923,1744635045183,-150.0,0.00019872,2]
[357973924,1744635045193,-150.0,0.00019874,2]
[357973925,1744635045203,-159.30327565,0.00019885,2]
[357973926,1744635045223,-715.8541,0.00019886,2]
[357973927,1744635045233,-370.48724768,0.0001989,2]
[357973928,1744635045243,-500.0,0.00019899,2]
[357973929,1744635045253,-500.0,0.00019899,2]
[357973930,1744635045263,-225.0,0.000199,2]
[357973931,1744635045273,-2280.542,0.000199,2]
[357973932,1744635045282,-11174.25201968,0.000199,2]
[357973933,1744635045292,-377.02140848,0.000199,2]
[357973934,1744635045303,-160.09104658,0.000199,2]
[357973935,1744635045312,-746.05491603,0.000199,2]
[357973936,1744635045323,-709.14781852,0.000199,2]
[357973937,1744635045334,-203.61373272,0.000199,2]
[357973938,1744635045344,-2287.44955157,0.000199,2]
[357973939,1744635045354,-150.0,0.00019907,2]
[357973940,1744635045364,-150.0,0.0001991,2]
[357973941,1744635045374,-150.0,0.00019915,2]
[357973942,1744635045384,-150.0,0.00019924,2]
[357973943,1744635045393,-150.0,0.00019924,2]
[357973944,1744635045403,-150.0,0.00019925,2]
[357973945,1744635045412,-150.0,0.00019931,2]
[357973946,1744635045422,-150.0,0.00019934,2]
[357973947,1744635045432,-150.0,0.0001994,2]
[357973948,1744635045442,-150.0,0.00019944,2]
[357973949,1744635045452,-150.0,0.00019949,2]
[357973950,1744635045462,-150.0,0.00019951,2]
[357973951,1744635045471,-150.0,0.00019958,2]
[357973952,1744635045481,-150.0,0.0001996,2]
[357973953,1744635045491,-150.0,0.00019962,2]
[357973954,1744635045502,-150.0,0.00019963,2]
[357973955,1744635045512,-150.0,0.00019965,2]
[357973956,1744635045522,-150.0,0.00019967,2]
[357973957,1744635045531,-150.0,0.00019972,2]
[357973958,1744635045541,-165.27457115,0.00019973,2]
[357973959,1744635045551,-500.0,0.00019973,2]
[357973960,1744635045561,-500.0,0.00019973,2]
[357973961,1744635045570,-500.0,0.00019973,2]
[357973962,1744635045580,-503.66283739,0.00019973,2]
[357973963,1744635045590,-500.0,0.00019973,2]
[357973964,1744635045599,-150.0,0.00019973,2]
[357973965,1744635045609,-150.0,0.00019977,2]
[357973966,1744635045620,-150.0,0.00019978,2]
[357973967,1744635045630,-150.0,0.00019984,2]
[357973968,1744635045639,-150.0,0.00019985,2]
[357973969,1744635045649,-4113.1151863,0.00019986,2]
[357973970,1744635045660,-109371.4876524,0.00019986,2]
[357973971,1744635045670,-150.0,0.00019987,2]
[357973972,1744635045679,-1472.0,0.00019989,2]
[357973973,1744635045689,-150.0,0.00019989,2]
[357973974,1744635045699,-150.0,0.00019989,2]
[357973975,1744635045708,-177.34800861,0.0001999,2]
[357973977,1744635045718,-177.34800861,0.0001999,2]
[357973978,1744635045726,-248.88953447,0.00019999,5]
[357973979,1744635045735,-529.73676513,0.00019999,2]
[357973980,1744635045743,-903.19,0.00019999,2]
[357973981,1744635045753,-500.0,0.00019999,2]
[357973982,1744635045763,-500.0,0.00019999,2]
[357973983,1744635045772,-500.0,0.00019999,2]
[357973984,1744635045782,-500.0,0.00019999,2]
[357973985,1744635045791,-500.0,0.00019999,2]
[357973986,1744635045800,-500.0,0.00019999,2]
[357973987,1744635045810,-500.0,0.00019999,2]